{"text_format":"3","workbook":"xlsx","n_sheets":3,"sheets":["选调生（人数最少）","选调生（人数最多）","参考表"],"read":"whole","date_system":"1900"}

{"sheet":"选调生（人数最少）","index":0,"n_rows":31,"n_cols":6,"rows_kept":31}
["职位名称","性别","高校类别","职位代码","招录人数","报考人数"]
[{"$f":"VLOOKUP(D2,参考表!B:G,2,FALSE)","v":"选调生岗位十四\n（柳州市）"},{"$f":"VLOOKUP(D2,参考表!B:H,3,FALSE)","v":"男"},{"$f":"VLOOKUP(D2,参考表!B:H,4,FALSE)","v":"“双一流”建设高校"},45029014,1,0]
[{"$f":"VLOOKUP(D3,参考表!B:G,2,FALSE)","v":"选调生岗位十五\n（柳州市）"},{"$f":"VLOOKUP(D3,参考表!B:H,3,FALSE)","v":"女"},{"$f":"VLOOKUP(D3,参考表!B:H,4,FALSE)","v":"“双一流”建设高校"},45029015,1,0]
[{"$f":"VLOOKUP(D4,参考表!B:G,2,FALSE)","v":"选调生岗位十五\n（桂林市）"},{"$f":"VLOOKUP(D4,参考表!B:H,3,FALSE)","v":"男"},{"$f":"VLOOKUP(D4,参考表!B:H,4,FALSE)","v":"“双一流”建设高校、其他高校"},45039015,3,0]
[{"$f":"VLOOKUP(D5,参考表!B:G,2,FALSE)","v":"选调生岗位二十二\n（桂林市）"},{"$f":"VLOOKUP(D5,参考表!B:H,3,FALSE)","v":"不限"},{"$f":"VLOOKUP(D5,参考表!B:H,4,FALSE)","v":"“双一流”建设高校、其他高校"},45039022,1,0]
[{"$f":"VLOOKUP(D6,参考表!B:G,2,FALSE)","v":"选调生岗位一\n（防城港市）"},{"$f":"VLOOKUP(D6,参考表!B:H,3,FALSE)","v":"男"},{"$f":"VLOOKUP(D6,参考表!B:H,4,FALSE)","v":"“双一流”建设高校"},45069001,1,0]
[{"$f":"VLOOKUP(D7,参考表!B:G,2,FALSE)","v":"选调生岗位五 \n（防城港市）"},{"$f":"VLOOKUP(D7,参考表!B:H,3,FALSE)","v":"不限"},{"$f":"VLOOKUP(D7,参考表!B:H,4,FALSE)","v":"“双一流”建设高校"},45069005,1,0]
[{"$f":"VLOOKUP(D8,参考表!B:G,2,FALSE)","v":"选调生岗位一\n（钦州市）"},{"$f":"VLOOKUP(D8,参考表!B:H,3,FALSE)","v":"男"},{"$f":"VLOOKUP(D8,参考表!B:H,4,FALSE)","v":"“双一流”建设高校、其他高校"},45079001,1,0]
[{"$f":"VLOOKUP(D9,参考表!B:G,2,FALSE)","v":"选调生岗位三\n（钦州市）"},{"$f":"VLOOKUP(D9,参考表!B:H,3,FALSE)","v":"男"},{"$f":"VLOOKUP(D9,参考表!B:H,4,FALSE)","v":"“双一流”建设高校、其他高校"},45079003,1,0]
[{"$f":"VLOOKUP(D10,参考表!B:G,2,FALSE)","v":"选调生岗位四\n（钦州市）"},{"$f":"VLOOKUP(D10,参考表!B:H,3,FALSE)","v":"女"},{"$f":"VLOOKUP(D10,参考表!B:H,4,FALSE)","v":"“双一流”建设高校、其他高校"},45079004,1,0]
[{"$f":"VLOOKUP(D11,参考表!B:G,2,FALSE)","v":"选调生岗位五\n（贵港市）"},{"$f":"VLOOKUP(D11,参考表!B:H,3,FALSE)","v":"不限"},{"$f":"VLOOKUP(D11,参考表!B:H,4,FALSE)","v":"“双一流”建设高校、其他高校"},45089005,1,0]
[{"$f":"VLOOKUP(D12,参考表!B:G,2,FALSE)","v":"选调生岗位六\n（贵港市）"},{"$f":"VLOOKUP(D12,参考表!B:H,3,FALSE)","v":"女"},{"$f":"VLOOKUP(D12,参考表!B:H,4,FALSE)","v":"“双一流”建设高校、其他高校"},45089006,1,0]
[{"$f":"VLOOKUP(D13,参考表!B:G,2,FALSE)","v":"选调生岗位十\n（贵港市）"},{"$f":"VLOOKUP(D13,参考表!B:H,3,FALSE)","v":"男"},{"$f":"VLOOKUP(D13,参考表!B:H,4,FALSE)","v":"“双一流”建设高校"},45089010,1,0]
[{"$f":"VLOOKUP(D14,参考表!B:G,2,FALSE)","v":"选调生岗位九\n（百色市）"},{"$f":"VLOOKUP(D14,参考表!B:H,3,FALSE)","v":"男"},{"$f":"VLOOKUP(D14,参考表!B:H,4,FALSE)","v":"“双一流”建设高校、其他高校"},45269009,2,0]
[{"$f":"VLOOKUP(D15,参考表!B:G,2,FALSE)","v":"选调生岗位十九\n（百色市）"},{"$f":"VLOOKUP(D15,参考表!B:H,3,FALSE)","v":"男"},{"$f":"VLOOKUP(D15,参考表!B:H,4,FALSE)","v":"“双一流”建设高校、其他高校"},45269019,2,0]
[{"$f":"VLOOKUP(D16,参考表!B:G,2,FALSE)","v":"选调生岗位二十\n（百色市）"},{"$f":"VLOOKUP(D16,参考表!B:H,3,FALSE)","v":"女"},{"$f":"VLOOKUP(D16,参考表!B:H,4,FALSE)","v":"“双一流”建设高校、其他高校"},45269020,2,0]
[{"$f":"VLOOKUP(D17,参考表!B:G,2,FALSE)","v":"选调生岗位一\n（贺州市）"},{"$f":"VLOOKUP(D17,参考表!B:H,3,FALSE)","v":"不限"},{"$f":"VLOOKUP(D17,参考表!B:H,4,FALSE)","v":"“双一流”建设高校、其他高校"},45249001,1,0]
[{"$f":"VLOOKUP(D18,参考表!B:G,2,FALSE)","v":"选调生岗位二\n（贺州市）"},{"$f":"VLOOKUP(D18,参考表!B:H,3,FALSE)","v":"不限"},{"$f":"VLOOKUP(D18,参考表!B:H,4,FALSE)","v":"“双一流”建设高校、其他高校"},45249002,1,0]
[{"$f":"VLOOKUP(D19,参考表!B:G,2,FALSE)","v":"选调生岗位三\n（贺州市）"},{"$f":"VLOOKUP(D19,参考表!B:H,3,FALSE)","v":"男"},{"$f":"VLOOKUP(D19,参考表!B:H,4,FALSE)","v":"“双一流”建设高校、其他高校"},45249003,1,0]
[{"$f":"VLOOKUP(D20,参考表!B:G,2,FALSE)","v":"选调生岗位五\n（贺州市）"},{"$f":"VLOOKUP(D20,参考表!B:H,3,FALSE)","v":"男"},{"$f":"VLOOKUP(D20,参考表!B:H,4,FALSE)","v":"“双一流”建设高校、其他高校"},45249005,1,0]
[{"$f":"VLOOKUP(D21,参考表!B:G,2,FALSE)","v":"选调生岗位十一\n（贺州市）"},{"$f":"VLOOKUP(D21,参考表!B:H,3,FALSE)","v":"男"},{"$f":"VLOOKUP(D21,参考表!B:H,4,FALSE)","v":"“双一流”建设高校、其他高校"},45249011,1,0]
[{"$f":"VLOOKUP(D22,参考表!B:G,2,FALSE)","v":"选调生岗位十二\n（贺州市）"},{"$f":"VLOOKUP(D22,参考表!B:H,3,FALSE)","v":"女"},{"$f":"VLOOKUP(D22,参考表!B:H,4,FALSE)","v":"“双一流”建设高校、其他高校"},45249012,1,0]
[{"$f":"VLOOKUP(D23,参考表!B:G,2,FALSE)","v":"选调生岗位十三\n（贺州市）"},{"$f":"VLOOKUP(D23,参考表!B:H,3,FALSE)","v":"男"},{"$f":"VLOOKUP(D23,参考表!B:H,4,FALSE)","v":"“双一流”建设高校、其他高校"},45249013,1,0]
[{"$f":"VLOOKUP(D24,参考表!B:G,2,FALSE)","v":"选调生岗位十四\n（贺州市）"},{"$f":"VLOOKUP(D24,参考表!B:H,3,FALSE)","v":"女"},{"$f":"VLOOKUP(D24,参考表!B:H,4,FALSE)","v":"“双一流”建设高校、其他高校"},45249014,1,0]
[{"$f":"VLOOKUP(D25,参考表!B:G,2,FALSE)","v":"选调生岗位十五\n（贺州市）"},{"$f":"VLOOKUP(D25,参考表!B:H,3,FALSE)","v":"不限"},{"$f":"VLOOKUP(D25,参考表!B:H,4,FALSE)","v":"“双一流”建设高校、其他高校"},45249015,1,0]
[{"$f":"VLOOKUP(D26,参考表!B:G,2,FALSE)","v":"选调生岗位十八\n（贺州市）"},{"$f":"VLOOKUP(D26,参考表!B:H,3,FALSE)","v":"男"},{"$f":"VLOOKUP(D26,参考表!B:H,4,FALSE)","v":"“双一流”建设高校、其他高校"},45249018,1,0]
[{"$f":"VLOOKUP(D27,参考表!B:G,2,FALSE)","v":"选调生岗位十九\n（贺州市）"},{"$f":"VLOOKUP(D27,参考表!B:H,3,FALSE)","v":"女"},{"$f":"VLOOKUP(D27,参考表!B:H,4,FALSE)","v":"“双一流”建设高校、其他高校"},45249019,1,0]
[{"$f":"VLOOKUP(D28,参考表!B:G,2,FALSE)","v":"选调生岗位一\n（河池市）"},{"$f":"VLOOKUP(D28,参考表!B:H,3,FALSE)","v":"不限"},{"$f":"VLOOKUP(D28,参考表!B:H,4,FALSE)","v":"“双一流”建设高校"},45279001,1,0]
[{"$f":"VLOOKUP(D29,参考表!B:G,2,FALSE)","v":"选调生岗位三\n（来宾市）"},{"$f":"VLOOKUP(D29,参考表!B:H,3,FALSE)","v":"男"},{"$f":"VLOOKUP(D29,参考表!B:H,4,FALSE)","v":"“双一流”建设高校、其他高校"},45229003,1,0]
[{"$f":"VLOOKUP(D30,参考表!B:G,2,FALSE)","v":"选调生岗位四\n（来宾市）"},{"$f":"VLOOKUP(D30,参考表!B:H,3,FALSE)","v":"男"},{"$f":"VLOOKUP(D30,参考表!B:H,4,FALSE)","v":"“双一流”建设高校、其他高校"},45229004,3,0]
[{"$f":"VLOOKUP(D31,参考表!B:G,2,FALSE)","v":"选调生岗位八\n（来宾市）"},{"$f":"VLOOKUP(D31,参考表!B:H,3,FALSE)","v":"不限"},{"$f":"VLOOKUP(D31,参考表!B:H,4,FALSE)","v":"“双一流”建设高校、其他高校"},45229008,1,0]

{"sheet":"选调生（人数最多）","index":1,"n_rows":31,"n_cols":6,"rows_kept":31}
["职位名称","性别","高校类别","职位代码","招录人数","报考人数"]
[{"$f":"VLOOKUP(D2,参考表!B:G,2,FALSE)","v":"选调生岗位十二\n（钦州市）"},{"$f":"VLOOKUP(D2,参考表!B:H,3,FALSE)","v":"女"},{"$f":"VLOOKUP(D2,参考表!B:H,4,FALSE)","v":"“双一流”建设高校、其他高校"},45079012,6,130]
[{"$f":"VLOOKUP(D3,参考表!B:G,2,FALSE)","v":"选调生岗位二\n（贵港市）"},{"$f":"VLOOKUP(D3,参考表!B:H,3,FALSE)","v":"女"},{"$f":"VLOOKUP(D3,参考表!B:H,4,FALSE)","v":"“双一流”建设高校、其他高校"},45089002,4,124]
[{"$f":"VLOOKUP(D4,参考表!B:G,2,FALSE)","v":"选调生岗位十三\n（玉林市）"},{"$f":"VLOOKUP(D4,参考表!B:H,3,FALSE)","v":"女"},{"$f":"VLOOKUP(D4,参考表!B:H,4,FALSE)","v":"“双一流”建设高校、其他高校"},45259013,3,90]
[{"$f":"VLOOKUP(D5,参考表!B:G,2,FALSE)","v":"选调生岗位九\n（防城港市）"},{"$f":"VLOOKUP(D5,参考表!B:H,3,FALSE)","v":"女"},{"$f":"VLOOKUP(D5,参考表!B:H,4,FALSE)","v":"“双一流”建设高校、其他高校"},45069009,6,71]
[{"$f":"VLOOKUP(D6,参考表!B:G,2,FALSE)","v":"选调生岗位十五\n（南宁市）"},{"$f":"VLOOKUP(D6,参考表!B:H,3,FALSE)","v":"男"},{"$f":"VLOOKUP(D6,参考表!B:H,4,FALSE)","v":"“双一流”建设高校、其他高校"},45019015,5,68]
[{"$f":"VLOOKUP(D7,参考表!B:G,2,FALSE)","v":"选调生岗位十一\n（梧州市）"},{"$f":"VLOOKUP(D7,参考表!B:H,3,FALSE)","v":"女"},{"$f":"VLOOKUP(D7,参考表!B:H,4,FALSE)","v":"“双一流”建设高校、其他高校"},45049011,5,66]
[{"$f":"VLOOKUP(D8,参考表!B:G,2,FALSE)","v":"选调生岗位二十七\n（南宁市）"},{"$f":"VLOOKUP(D8,参考表!B:H,3,FALSE)","v":"女"},{"$f":"VLOOKUP(D8,参考表!B:H,4,FALSE)","v":"“双一流”建设高校、其他高校"},45019027,4,63]
[{"$f":"VLOOKUP(D9,参考表!B:G,2,FALSE)","v":"选调生岗位一\n（贵港市）"},{"$f":"VLOOKUP(D9,参考表!B:H,3,FALSE)","v":"男"},{"$f":"VLOOKUP(D9,参考表!B:H,4,FALSE)","v":"“双一流”建设高校、其他高校"},45089001,4,63]
[{"$f":"VLOOKUP(D10,参考表!B:G,2,FALSE)","v":"选调生岗位十一\n（钦州市）"},{"$f":"VLOOKUP(D10,参考表!B:H,3,FALSE)","v":"男"},{"$f":"VLOOKUP(D10,参考表!B:H,4,FALSE)","v":"“双一流”建设高校、其他高校"},45079011,6,60]
[{"$f":"VLOOKUP(D11,参考表!B:G,2,FALSE)","v":"选调生岗位二十四\n（南宁市）"},{"$f":"VLOOKUP(D11,参考表!B:H,3,FALSE)","v":"女"},{"$f":"VLOOKUP(D11,参考表!B:H,4,FALSE)","v":"“双一流”建设高校、其他高校"},45019024,4,58]
[{"$f":"VLOOKUP(D12,参考表!B:G,2,FALSE)","v":"选调生岗位十\n（桂林市）"},{"$f":"VLOOKUP(D12,参考表!B:H,3,FALSE)","v":"女"},{"$f":"VLOOKUP(D12,参考表!B:H,4,FALSE)","v":"“双一流”建设高校、其他高校"},45039010,5,57]
[{"$f":"VLOOKUP(D13,参考表!B:G,2,FALSE)","v":"选调生岗位二十三\n（南宁市）"},{"$f":"VLOOKUP(D13,参考表!B:H,3,FALSE)","v":"女"},{"$f":"VLOOKUP(D13,参考表!B:H,4,FALSE)","v":"“双一流”建设高校、其他高校"},45019023,4,56]
[{"$f":"VLOOKUP(D14,参考表!B:G,2,FALSE)","v":"选调生岗位九\n（梧州市）"},{"$f":"VLOOKUP(D14,参考表!B:H,3,FALSE)","v":"女"},{"$f":"VLOOKUP(D14,参考表!B:H,4,FALSE)","v":"“双一流”建设高校、其他高校"},45049009,5,56]
[{"$f":"VLOOKUP(D15,参考表!B:G,2,FALSE)","v":"选调生岗位二\n（北海市）"},{"$f":"VLOOKUP(D15,参考表!B:H,3,FALSE)","v":"女"},{"$f":"VLOOKUP(D15,参考表!B:H,4,FALSE)","v":"“双一流”建设高校、其他高校"},45059002,3,56]
[{"$f":"VLOOKUP(D16,参考表!B:G,2,FALSE)","v":"选调生岗位二十一\n（河池市）"},{"$f":"VLOOKUP(D16,参考表!B:H,3,FALSE)","v":"女"},{"$f":"VLOOKUP(D16,参考表!B:H,4,FALSE)","v":"“双一流”建设高校、其他高校"},45279021,5,55]
[{"$f":"VLOOKUP(D17,参考表!B:G,2,FALSE)","v":"选调生岗位二十五\n（南宁市）"},{"$f":"VLOOKUP(D17,参考表!B:H,3,FALSE)","v":"女"},{"$f":"VLOOKUP(D17,参考表!B:H,4,FALSE)","v":"“双一流”建设高校、其他高校"},45019025,4,50]
[{"$f":"VLOOKUP(D18,参考表!B:G,2,FALSE)","v":"选调生岗位二十六\n（南宁市）"},{"$f":"VLOOKUP(D18,参考表!B:H,3,FALSE)","v":"女"},{"$f":"VLOOKUP(D18,参考表!B:H,4,FALSE)","v":"“双一流”建设高校、其他高校"},45019026,4,48]
[{"$f":"VLOOKUP(D19,参考表!B:G,2,FALSE)","v":"选调生岗位十\n（梧州市）"},{"$f":"VLOOKUP(D19,参考表!B:H,3,FALSE)","v":"男"},{"$f":"VLOOKUP(D19,参考表!B:H,4,FALSE)","v":"“双一流”建设高校、其他高校"},45049010,6,43]
[{"$f":"VLOOKUP(D20,参考表!B:G,2,FALSE)","v":"选调生岗位十二\n（桂林市）"},{"$f":"VLOOKUP(D20,参考表!B:H,3,FALSE)","v":"女"},{"$f":"VLOOKUP(D20,参考表!B:H,4,FALSE)","v":"“双一流”建设高校、其他高校"},45039012,5,42]
[{"$f":"VLOOKUP(D21,参考表!B:G,2,FALSE)","v":"选调生岗位十四\n（玉林市）"},{"$f":"VLOOKUP(D21,参考表!B:H,3,FALSE)","v":"男"},{"$f":"VLOOKUP(D21,参考表!B:H,4,FALSE)","v":"“双一流”建设高校、其他高校"},45259014,3,42]
[{"$f":"VLOOKUP(D22,参考表!B:G,2,FALSE)","v":"选调生岗位十四\n（桂林市）"},{"$f":"VLOOKUP(D22,参考表!B:H,3,FALSE)","v":"女"},{"$f":"VLOOKUP(D22,参考表!B:H,4,FALSE)","v":"“双一流”建设高校、其他高校"},45039014,5,41]
[{"$f":"VLOOKUP(D23,参考表!B:G,2,FALSE)","v":"选调生岗位六\n（崇左市）"},{"$f":"VLOOKUP(D23,参考表!B:H,3,FALSE)","v":"女"},{"$f":"VLOOKUP(D23,参考表!B:H,4,FALSE)","v":"“双一流”建设高校、其他高校"},45219006,5,41]
[{"$f":"VLOOKUP(D24,参考表!B:G,2,FALSE)","v":"选调生岗位十六\n（百色市）"},{"$f":"VLOOKUP(D24,参考表!B:H,3,FALSE)","v":"女"},{"$f":"VLOOKUP(D24,参考表!B:H,4,FALSE)","v":"“双一流”建设高校、其他高校"},45269016,5,41]
[{"$f":"VLOOKUP(D25,参考表!B:G,2,FALSE)","v":"选调生岗位四\n（崇左市）"},{"$f":"VLOOKUP(D25,参考表!B:H,3,FALSE)","v":"女"},{"$f":"VLOOKUP(D25,参考表!B:H,4,FALSE)","v":"“双一流”建设高校、其他高校"},45219004,5,40]
[{"$f":"VLOOKUP(D26,参考表!B:G,2,FALSE)","v":"选调生岗位十九\n（河池市）"},{"$f":"VLOOKUP(D26,参考表!B:H,3,FALSE)","v":"女"},{"$f":"VLOOKUP(D26,参考表!B:H,4,FALSE)","v":"“双一流”建设高校、其他高校"},45279019,3,38]
[{"$f":"VLOOKUP(D27,参考表!B:G,2,FALSE)","v":"选调生岗位八\n（防城港市）"},{"$f":"VLOOKUP(D27,参考表!B:H,3,FALSE)","v":"男"},{"$f":"VLOOKUP(D27,参考表!B:H,4,FALSE)","v":"“双一流”建设高校、其他高校"},45069008,6,37]
[{"$f":"VLOOKUP(D28,参考表!B:G,2,FALSE)","v":"选调生岗位十四\n（百色市）"},{"$f":"VLOOKUP(D28,参考表!B:H,3,FALSE)","v":"女"},{"$f":"VLOOKUP(D28,参考表!B:H,4,FALSE)","v":"“双一流”建设高校、其他高校"},45269014,5,37]
[{"$f":"VLOOKUP(D29,参考表!B:G,2,FALSE)","v":"选调生岗位一\n（北海市）"},{"$f":"VLOOKUP(D29,参考表!B:H,3,FALSE)","v":"男"},{"$f":"VLOOKUP(D29,参考表!B:H,4,FALSE)","v":"“双一流”建设高校、其他高校"},45059001,3,36]
[{"$f":"VLOOKUP(D30,参考表!B:G,2,FALSE)","v":"选调生岗位十\n（南宁市）"},{"$f":"VLOOKUP(D30,参考表!B:H,3,FALSE)","v":"女"},{"$f":"VLOOKUP(D30,参考表!B:H,4,FALSE)","v":"“双一流”建设高校"},45019010,3,35]
[{"$f":"VLOOKUP(D31,参考表!B:G,2,FALSE)","v":"选调生岗位十二\n（百色市）"},{"$f":"VLOOKUP(D31,参考表!B:H,3,FALSE)","v":"女"},{"$f":"VLOOKUP(D31,参考表!B:H,4,FALSE)","v":"“双一流”建设高校、其他高校"},45269012,5,35]

{"sheet":"参考表","index":2,"n_rows":219,"n_cols":9,"rows_kept":219}
["序号","职位代码","职位名称","性别","高校类别","招录人数","专业","咨询电话","备注"]
[1,45019001,"选调生岗位一\n（南宁市）","男","“双一流”建设高校",1,"计算机科学与技术类","中共南宁市委组织部\n0771-5780292","工作岗位为市直机关"]
[2,45019002,"选调生岗位二\n（南宁市）","女","“双一流”建设高校",1,"法学类","中共南宁市委组织部\n0771-5780292","工作岗位为市直机关"]
[3,45019003,"选调生岗位三\n（南宁市）","男","“双一流”建设高校、其他高校",1,"历史学类（文物与博物馆学、考古学、文物修复与保护专业）","中共南宁市委组织部\n0771-5780292","研究生学历，\n工作岗位为市直机关"]
[4,45019004,"选调生岗位四\n（南宁市）","男","“双一流”建设高校",1,"新闻传播学类、历史学类、中国汉语言文学及文秘类","中共南宁市委组织部\n0771-5780292","中共党员、研究生学历；工作岗位为市直机关"]
[5,45019005,"选调生岗位五\n（南宁市）","男","“双一流”建设高校",1,"经济学类、工商管理类、法学类、化学类、化工与制药技术类、环境科学与工程类、交通运输类","中共南宁市委组织部\n0771-5780292","工作岗位为乡镇机关"]
[6,45019006,"选调生岗位六\n（南宁市）","男","“双一流”建设高校",1,"农业工程类、林学及林业工程类、农业经济管理类、自然保护与环境生态类、植物生产保护及草学类","中共南宁市委组织部\n0771-5780292","工作岗位为乡镇机关"]
[7,45019007,"选调生岗位七\n（南宁市）","男","“双一流”建设高校",3,"不限专业","中共南宁市委组织部\n0771-5780292","工作岗位为乡镇机关"]
[8,45019008,"选调生岗位八\n（南宁市）","男","“双一流”建设高校",3,"不限专业","中共南宁市委组织部\n0771-5780292","工作岗位为乡镇机关"]
[9,45019009,"选调生岗位九\n（南宁市）","女","“双一流”建设高校",1,"经济学类、工商管理类、法学类","中共南宁市委组织部\n0771-5780292","工作岗位为乡镇机关"]
[10,45019010,"选调生岗位十\n（南宁市）","女","“双一流”建设高校",3,"不限专业","中共南宁市委组织部\n0771-5780292","工作岗位为乡镇机关"]
[11,45019011,"选调生岗位十一\n（南宁市）","女","“双一流”建设高校",3,"不限专业","中共南宁市委组织部\n0771-5780292","工作岗位为乡镇机关"]
[12,45019012,"选调生岗位十二\n（南宁市）","男","“双一流”建设高校、其他高校",2,"经济学类、法学类、土木类、建筑类、植物生产、保护及草学类、农业工程类、林学及林业工程类、水利类","中共南宁市委组织部\n0771-5780292","工作岗位为乡镇机关"]
[13,45019013,"选调生岗位十三\n（南宁市）","男","“双一流”建设高校、其他高校",2,"农业工程类、农林经济管理类、林学及林业工程类、水利类","中共南宁市委组织部\n0771-5780292","工作岗位为乡镇机关"]
[14,45019014,"选调生岗位十四\n（南宁市）","男","“双一流”建设高校、其他高校",3,"法学类、经济学类、农林经济管理类","中共南宁市委组织部\n0771-5780292","工作岗位为乡镇机关"]
[15,45019015,"选调生岗位十五\n（南宁市）","男","“双一流”建设高校、其他高校",5,"不限专业","中共南宁市委组织部\n0771-5780292","工作岗位为乡镇机关"]
[16,45019016,"选调生岗位十六\n（南宁市）","男","“双一流”建设高校、其他高校",4,"不限专业","中共南宁市委组织部\n0771-5780292","工作岗位为乡镇机关"]
[17,45019017,"选调生岗位十七\n（南宁市）","男","“双一流”建设高校、其他高校",4,"不限专业","中共南宁市委组织部\n0771-5780292","工作岗位为乡镇机关"]
[18,45019018,"选调生岗位十八\n（南宁市）","男","“双一流”建设高校、其他高校",4,"不限专业","中共南宁市委组织部\n0771-5780292","工作岗位为乡镇机关"]
[19,45019019,"选调生岗位十九\n（南宁市）","不限","“双一流”建设高校、其他高校",1,"不限专业","中共南宁市委组织部\n0771-5780292","工作岗位为乡镇机关"]
[20,45019020,"选调生岗位二十\n（南宁市）","女","“双一流”建设高校、其他高校",2,"会计学类、审计学类","中共南宁市委组织部\n0771-5780292","工作岗位为乡镇机关"]
[21,45019021,"选调生岗位二十一\n（南宁市）","女","“双一流”建设高校、其他高校",2,"经济学类、法学类、土木类、建筑类、植物生产、保护及草学类、农业工程类、林学及林业工程类、水利类","中共南宁市委组织部\n0771-5780292","工作岗位为乡镇机关"]
[22,45019022,"选调生岗位二十二\n（南宁市）","女","“双一流”建设高校、其他高校",3,"农业工程类、林学及林业工程类、农林经济管理类、经济学类","中共南宁市委组织部\n0771-5780292","工作岗位为乡镇机关"]
[23,45019023,"选调生岗位二十三\n（南宁市）","女","“双一流”建设高校、其他高校",4,"不限专业","中共南宁市委组织部\n0771-5780292","工作岗位为乡镇机关"]
[24,45019024,"选调生岗位二十四\n（南宁市）","女","“双一流”建设高校、其他高校",4,"不限专业","中共南宁市委组织部\n0771-5780292","工作岗位为乡镇机关"]
[25,45019025,"选调生岗位二十五\n（南宁市）","女","“双一流”建设高校、其他高校",4,"不限专业","中共南宁市委组织部\n0771-5780292","工作岗位为乡镇机关"]
[26,45019026,"选调生岗位二十六\n（南宁市）","女","“双一流”建设高校、其他高校",4,"不限专业","中共南宁市委组织部\n0771-5780292","工作岗位为乡镇机关"]
[27,45019027,"选调生岗位二十七\n（南宁市）","女","“双一流”建设高校、其他高校",4,"不限专业","中共南宁市委组织部\n0771-5780292","工作岗位为乡镇机关"]
[28,45029001,"选调生岗位一\n（柳州市）","不限","“双一流”建设高校、其他高校",1,"法学类","中共柳州市委组织部\n0772-2806332","工作岗位为市直参照公务员法管理单位"]
[29,45029002,"选调生岗位二\n（柳州市）","男","“双一流”建设高校、其他高校",1,"经济学类；统计学类；食品科学与工程类","中共柳州市委组织部\n0772-2806332","工作岗位为县直机关"]
[30,45029003,"选调生岗位三\n（柳州市）","女","“双一流”建设高校、其他高校",1,"经济学类；统计学类；食品科学与工程类","中共柳州市委组织部\n0772-2806332","工作岗位为县直机关"]
[31,45029004,"选调生岗位四\n（柳州市）","男","“双一流”建设高校、其他高校",1,"土木类；建筑类；测绘科学与技术类；农林经济管理类；旅游管理类","中共柳州市委组织部\n0772-2806332","工作岗位为县直机关"]
[32,45029005,"选调生岗位五\n（柳州市）","女","“双一流”建设高校、其他高校",1,"土木类；建筑类；测绘科学与技术类；农林经济管理类；旅游管理类","中共柳州市委组织部\n0772-2806332","工作岗位为县直机关"]
[33,45029006,"选调生岗位六\n（柳州市）","男","“双一流”建设高校、其他高校",1,"经济学类；地理科学类；土木类；建筑类；测绘科学与技术类；","中共柳州市委组织部\n0772-2806332","工作岗位为城区参照公务员法管理单位"]
[34,45029007,"选调生岗位七\n（柳州市）","女","“双一流”建设高校、其他高校",1,"经济学类；地理科学类；土木类；建筑类；测绘科学与技术类；","中共柳州市委组织部\n0772-2806332","工作岗位为城区参照公务员法管理单位"]
[35,45029008,"选调生岗位八\n（柳州市）","男","“双一流”建设高校、其他高校",5,"土木类；建筑类；水利类；农业工程类；林学及林业工程类；农林经济管理类","中共柳州市委组织部\n0772-2806332","工作岗位为乡镇机关"]
[36,45029009,"选调生岗位九\n（柳州市）","女","“双一流”建设高校、其他高校",5,"土木类；建筑类；水利类；农业工程类；林学及林业工程类；农林经济管理类","中共柳州市委组织部\n0772-2806332","工作岗位为乡镇机关"]
[37,45029010,"选调生岗位十\n（柳州市）","男","“双一流”建设高校、其他高校",2,"经济学类；法学类；土木类；农业工程类；林学及林业工程类","中共柳州市委组织部\n0772-2806332","工作岗位为乡镇机关"]
[38,45029011,"选调生岗位十一\n（柳州市）","女","“双一流”建设高校、其他高校",2,"经济学类；法学类；土木类；农业工程类；林学及林业工程类","中共柳州市委组织部\n0772-2806332","工作岗位为乡镇机关"]
[39,45029012,"选调生岗位十二\n（柳州市）","男","“双一流”建设高校、其他高校",2,"经济学类；法学类；中国汉语言文学及文秘类；新闻传播学类；会计学类；旅游管理类","中共柳州市委组织部\n0772-2806332","工作岗位为乡镇机关"]
[40,45029013,"选调生岗位十三\n（柳州市）","女","“双一流”建设高校、其他高校",2,"经济学类；法学类；中国汉语言文学及文秘类；新闻传播学类；会计学类；旅游管理类","中共柳州市委组织部\n0772-2806332","工作岗位为乡镇机关"]
[41,45029014,"选调生岗位十四\n（柳州市）","男","“双一流”建设高校",1,"财政学类；金融学类；统计学类；建筑类；审计学类","中共柳州市委组织部\n0772-2806332","工作岗位为城区街道机关"]
[42,45029015,"选调生岗位十五\n（柳州市）","女","“双一流”建设高校",1,"财政学类；金融学类；统计学类；建筑类；审计学类","中共柳州市委组织部\n0772-2806332","工作岗位为城区街道机关"]
[43,45039001,"选调生岗位一\n（桂林市）","男","“双一流”建设高校",1,"新闻传播类、中国汉语言文学及文秘类、公共管理类、旅游管理类","中共桂林市委组织部 \n  0773-5625981","工作岗位为城区街道机关"]
[44,45039002,"选调生岗位二\n（桂林市）","女","“双一流”建设高校",1,"新闻传播类、中国汉语言文学及文秘类、公共管理类、旅游管理类","中共桂林市委组织部 \n  0773-5625981","工作岗位为城区街道机关"]
[45,45039003,"选调生岗位三\n（桂林市）","男","“双一流”建设高校",2,"经济学类、土木类、建筑类、水利类、农业工程类","中共桂林市委组织部 \n  0773-5625981","工作岗位为乡镇机关"]
[46,45039004,"选调生岗位四\n（桂林市）","女","“双一流”建设高校",2,"经济学类、土木类、建筑类、水利类、农业工程类","中共桂林市委组织部 \n  0773-5625981","工作岗位为乡镇机关"]
[47,45039005,"选调生岗位五\n（桂林市）","男","“双一流”建设高校、其他高校",2,"经济学类、法学类、新闻传播学类、汉语言文学及文秘类","中共桂林市委组织部 \n  0773-5625981","工作岗位为乡镇机关"]
[48,45039006,"选调生岗位六\n（桂林市）","女","“双一流”建设高校、其他高校",2,"经济学类、法学类、新闻传播学类、汉语言文学及文秘类","中共桂林市委组织部 \n  0773-5625981","工作岗位为乡镇机关"]
[49,45039007,"选调生岗位七\n（桂林市）","男","“双一流”建设高校、其他高校",3,"经济学类、法学类、农业工程类、林学及林业工程类、水利类、临床医学类、中医学类","中共桂林市委组织部 \n  0773-5625981","工作岗位为乡镇机关"]
[50,45039008,"选调生岗位八\n（桂林市）","女","“双一流”建设高校、其他高校",4,"经济学类、法学类、农业工程类、林学及林业工程类、水利类、临床医学类、中医学类","中共桂林市委组织部 \n  0773-5625981","工作岗位为乡镇机关"]
[51,45039009,"选调生岗位九\n（桂林市）","男","“双一流”建设高校、其他高校",5,"经济学类、金融学类、水利类、农业工程类、林学及林业工程类、工商管理类、会计学类、审计学类、农林经济管理类、公共管理类、物流管理与工程类","中共桂林市委组织部 \n  0773-5625981","工作岗位为乡镇机关"]
[52,45039010,"选调生岗位十\n（桂林市）","女","“双一流”建设高校、其他高校",5,"经济学类、金融学类、水利类、农业工程类、林学及林业工程类、工商管理类、会计学类、审计学类、农林经济管理类、公共管理类、物流管理与工程类","中共桂林市委组织部 \n  0773-5625981","工作岗位为乡镇机关"]
[53,45039011,"选调生岗位十一\n（桂林市）","男","“双一流”建设高校、其他高校",5,"不限专业","中共桂林市委组织部 \n  0773-5625981","工作岗位为乡镇机关"]
[54,45039012,"选调生岗位十二\n（桂林市）","女","“双一流”建设高校、其他高校",5,"不限专业","中共桂林市委组织部 \n  0773-5625981","工作岗位为乡镇机关"]
[55,45039013,"选调生岗位十三\n（桂林市）","男","“双一流”建设高校、其他高校",5,"不限专业","中共桂林市委组织部 \n  0773-5625981","工作岗位为乡镇机关"]
[56,45039014,"选调生岗位十四\n（桂林市）","女","“双一流”建设高校、其他高校",5,"不限专业","中共桂林市委组织部 \n  0773-5625981","工作岗位为乡镇机关"]
[57,45039015,"选调生岗位十五\n（桂林市）","男","“双一流”建设高校、其他高校",3,"不限专业","中共桂林市委组织部 \n  0773-5625981","工作岗位为乡镇机关"]
[58,45039016,"选调生岗位十六\n（桂林市）","女","“双一流”建设高校、其他高校",3,"不限专业","中共桂林市委组织部 \n  0773-5625981","工作岗位为乡镇机关"]
[59,45039017,"选调生岗位十七\n（桂林市）","男","“双一流”建设高校、其他高校",2,"不限专业","中共桂林市委组织部 \n  0773-5625981","工作岗位为乡镇机关"]
[60,45039018,"选调生岗位十八\n（桂林市）","女","“双一流”建设高校、其他高校",2,"不限专业","中共桂林市委组织部 \n  0773-5625981","工作岗位为乡镇机关"]
[61,45039019,"选调生岗位十九\n（桂林市）","男","“双一流”建设高校、其他高校",5,"不限专业","中共桂林市委组织部 \n  0773-5625981","工作岗位为乡镇机关"]
[62,45039020,"选调生岗位二十\n（桂林市）","男","“双一流”建设高校、其他高校",3,"不限专业","中共桂林市委组织部 \n  0773-5625981","工作岗位为乡镇机关"]
[63,45039021,"选调生岗位二十一\n（桂林市）","女","“双一流”建设高校、其他高校",3,"不限专业","中共桂林市委组织部 \n  0773-5625981","工作岗位为乡镇机关"]
[64,45039022,"选调生岗位二十二\n（桂林市）","不限","“双一流”建设高校、其他高校",1,"不限专业","中共桂林市委组织部 \n  0773-5625981","工作岗位为乡镇机关"]
[65,45039023,"选调生岗位二十三\n（桂林市）","女","“双一流”建设高校、其他高校",4,"不限专业","中共桂林市委组织部 \n  0773-5625981","工作岗位为乡镇机关"]
[66,45039024,"选调生岗位二十四\n（桂林市）","男","“双一流”建设高校、其他高校",4,"不限专业","中共桂林市委组织部 \n  0773-5625981","工作岗位为乡镇机关"]
[67,45039025,"选调生岗位二十五\n（桂林市）","女","“双一流”建设高校、其他高校",4,"不限专业","中共桂林市委组织部 \n  0773-5625981","工作岗位为乡镇机关"]
[68,45039026,"选调生岗位二十六\n（桂林市）","男","“双一流”建设高校、其他高校",4,"不限专业","中共桂林市委组织部 \n  0773-5625981","工作岗位为乡镇机关"]
[69,45039027,"选调生岗位二十七\n（桂林市）","女","“双一流”建设高校、其他高校",4,"不限专业","中共桂林市委组织部 \n  0773-5625981","工作岗位为乡镇机关"]
[70,45049001,"选调生岗位一\n（梧州市）","不限","“双一流”建设高校",1,"计算机科学与技术类、会计学类、中国汉语言文学及文秘类","中共梧州市委组织部0774-6021841","工作岗位为市直机关"]
[71,45049002,"选调生岗位二\n（梧州市）","不限","“双一流”建设高校、其他高校",1,"法学类、司法执行及技术类、财政学类、中国汉语言文学及文秘类","中共梧州市委组织部0774-6021841","工作岗位为县直机关"]
[72,45049003,"选调生岗位三\n（梧州市）","不限","“双一流”建设高校、其他高校",1,"公共卫生与预防医学类、新闻传播类、安全科学与工程类、药学类、茶学专业","中共梧州市委组织部0774-6021841","工作岗位为县直机关"]
[73,45049004,"选调生岗位四\n（梧州市）","男","“双一流”建设高校",4,"不限专业","中共梧州市委组织部0774-6021841","工作岗位为乡镇机关"]
[74,45049005,"选调生岗位五\n（梧州市）","女","“双一流”建设高校",4,"不限专业","中共梧州市委组织部0774-6021841","工作岗位为乡镇机关"]
[75,45049006,"选调生岗位六\n（梧州市）","男","“双一流”建设高校、其他高校",3,"经济学类、土木类、建筑类、水利类、交通运输类、农林经济管理类材料及冶金类、矿业类、自然保护与环境生态类、植物生产、保护及草学类，食品科学与工程类、纺织轻工类、建筑类、能源动力及工程热物理类","中共梧州市委组织部0774-6021841","工作岗位为乡镇机关"]
[76,45049007,"选调生岗位七\n（梧州市）","女","“双一流”建设高校、其他高校",3,"经济学类、土木类、建筑类、水利类、交通运输类、农林经济管理类、材料及冶金类，矿业类，自然保护与环境生态类，植物生产、保护及草学类，食品科学与工程类、纺织轻工类、建筑类、能源动力及工程热物理类","中共梧州市委组织部0774-6021841","工作岗位为乡镇机关"]
[77,45049008,"选调生岗位八\n（梧州市）","男","“双一流”建设高校、其他高校",4,"法学类、经济学类、统计学类、管理学类、金融学类、会计学类、财政学类、经济与贸易类、电子商务类、农业工程类、农林经济管理类、自然保护与环境生态类，林学及林业工程类，环境科学与工程类、土木类、建筑类、水利类","中共梧州市委组织部0774-6021841","工作岗位为乡镇机关"]
[78,45049009,"选调生岗位九\n（梧州市）","女","“双一流”建设高校、其他高校",5,"法学类、经济学类、统计学类、管理学类、金融学类、会计学类、财政学类、经济与贸易类、电子商务类、农业工程类、农林经济管理类、自然保护与环境生态类、林学及林业工程类、环境科学与工程类、土木类、建筑类、水利类","中共梧州市委组织部0774-6021841","工作岗位为乡镇机关"]
[79,45049010,"选调生岗位十\n（梧州市）","男","“双一流”建设高校、其他高校",6,"不限专业","中共梧州市委组织部0774-6021841","工作岗位为乡镇机关"]
[80,45049011,"选调生岗位十一\n（梧州市）","女","“双一流”建设高校、其他高校",5,"不限专业","中共梧州市委组织部0774-6021841","工作岗位为乡镇机关"]
[81,45059001,"选调生岗位一\n（北海市）","男","“双一流”建设高校、其他高校",3,"不限专业","中共北海市委组织部\n0779-3186288","工作岗位为乡镇机关"]
[82,45059002,"选调生岗位二\n（北海市）","女","“双一流”建设高校、其他高校",3,"不限专业","中共北海市委组织部\n0779-3186288","工作岗位为乡镇机关"]
[83,45059003,"选调生岗位三\n（北海市）","不限","“双一流”建设高校",1,"经济学类、公共管理类","中共北海市委组织部\n0779-3186288","工作岗位为城区直属机关"]
[84,45059004,"选调生岗位四\n（北海市）","不限","“双一流”建设高校、其他高校",1,"不限专业","中共北海市委组织部\n0779-3186288","工作岗位为城区乡镇机关"]
[85,45069001,"选调生岗位一\n（防城港市）","男","“双一流”建设高校",1,"法学类；审计学类；\n金融学类","中共防城港市委组织部\n0770-2823766","工作岗位为市直机关"]
[86,45069002,"选调生岗位二\n（防城港市）","女","“双一流”建设高校",1,"法学类；审计学类；\n金融学类","中共防城港市委组织部\n0770-2823766","工作岗位为市直机关"]
[87,45069003,"选调生岗位三\n（防城港市）","不限","“双一流”建设高校",1,"新闻传播学类","中共防城港市委组织部\n0770-2823766","工作岗位为市直机关"]
[88,45069004,"选调生岗位四\n（防城港市）","不限","“双一流”建设高校",1,"公共管理类","中共防城港市委组织部\n0770-2823766","工作岗位为市直参照公务员法管理单位"]
[89,45069005,"选调生岗位五 \n（防城港市）","不限","“双一流”建设高校",1,"法学类；海洋科学及工程类；环境科学类","中共防城港市委组织部\n0770-2823766","工作岗位为市直参照公务员法管理单位"]
[90,45069006,"选调生岗位六\n（防城港市）","不限","“双一流”建设高校、其他高校",1,"海洋科学及工程类；环境科学及能源类","中共防城港市委组织部\n0770-2823766","工作岗位为市直参照公务员法管理单位"]
[91,45069007,"选调生岗位七\n（防城港市）","不限","“双一流”建设高校、其他高校",2,"安全科学与工程类；土木类；建筑类；环境科学及能源类；交通运输类","中共防城港市委组织部\n0770-2823766","工作岗位为乡镇机关"]
[92,45069008,"选调生岗位八\n（防城港市）","男","“双一流”建设高校、其他高校",6,"不限专业","中共防城港市委组织部\n0770-2823766","工作岗位为乡镇机关"]
[93,45069009,"选调生岗位九\n（防城港市）","女","“双一流”建设高校、其他高校",6,"不限专业","中共防城港市委组织部\n0770-2823766","工作岗位为乡镇机关"]
[94,45069010,"选调生岗位十\n（防城港市）","不限","“双一流”建设高校、其他高校",1,"管理科学与工程类；自然保护与环境生态类；动物生产与水产类","中共防城港市委组织部\n0770-2823766","工作岗位为乡镇机关"]
[95,45069011,"选调生岗位十一\n（防城港市）","不限","“双一流”建设高校、其他高校",1,"不限专业","中共防城港市委组织部\n0770-2823766","工作岗位为乡镇机关"]
[96,45069012,"选调生岗位十二\n（防城港市）","不限","“双一流”建设高校、其他高校",1,"中国汉语言文学及文秘类；新闻传播学类；计算机科学与技术类；哲学类","中共防城港市委组织部\n0770-2823766","工作岗位为乡镇机关"]
[97,45069013,"选调生岗位十三\n（防城港市）","不限","“双一流”建设高校、其他高校",1,"经济学类；工商管理类","中共防城港市委组织部\n0770-2823766","工作岗位为乡镇机关"]
[98,45079001,"选调生岗位一\n（钦州市）","男","“双一流”建设高校、其他高校",1,"法学类","中共钦州市委组织部\n0777-3688126","中共党员，工作岗位为县直机关"]
[99,45079002,"选调生岗位二\n（钦州市）","女","“双一流”建设高校、其他高校",1,"法学类","中共钦州市委组织部\n0777-3688126","中共党员，工作岗位为县直机关"]
[100,45079003,"选调生岗位三\n（钦州市）","男","“双一流”建设高校、其他高校",1,"经济学类、工商管理类","中共钦州市委组织部\n0777-3688126","中共党员，工作岗位为县直机关"]
[101,45079004,"选调生岗位四\n（钦州市）","女","“双一流”建设高校、其他高校",1,"经济学类、工商管理类","中共钦州市委组织部\n0777-3688126","中共党员，工作岗位为县直机关"]
[102,45079005,"选调生岗位五\n（钦州市）","男","“双一流”建设高校、其他高校",4,"建筑类、土木类、交通运输类、水利类、测绘科学与技术类","中共钦州市委组织部\n0777-3688126","工作岗位为乡镇机关"]
[103,45079006,"选调生岗位六\n（钦州市）","女","“双一流”建设高校、其他高校",4,"建筑类、土木类、交通运输类、水利类、测绘科学与技术类","中共钦州市委组织部\n0777-3688126","工作岗位为乡镇机关"]
[104,45079007,"选调生岗位七\n（钦州市）","男","“双一流”建设高校、其他高校",4,"农业工程类、林学及林业工程类、植物生产、保护及草学类、自然保护与环境生态类、药学类","中共钦州市委组织部\n0777-3688126","工作岗位为乡镇机关"]
[105,45079008,"选调生岗位八\n（钦州市）","女","“双一流”建设高校、其他高校",4,"农业工程类、林学及林业工程类、植物生产、保护及草学类、自然保护与环境生态类、药学类","中共钦州市委组织部\n0777-3688126","工作岗位为乡镇机关"]
[106,45079009,"选调生岗位九\n（钦州市）","男","“双一流”建设高校、其他高校",4,"经济学类、审计学类、农林经济管理类","中共钦州市委组织部\n0777-3688126","工作岗位为乡镇机关"]
[107,45079010,"选调生岗位十\n（钦州市）","女","“双一流”建设高校、其他高校",4,"经济学类、审计学类、农林经济管理类","中共钦州市委组织部\n0777-3688126","工作岗位为乡镇机关"]
[108,45079011,"选调生岗位十一\n（钦州市）","男","“双一流”建设高校、其他高校",6,"专业不限","中共钦州市委组织部\n0777-3688126","工作岗位为乡镇机关"]
[109,45079012,"选调生岗位十二\n（钦州市）","女","“双一流”建设高校、其他高校",6,"专业不限","中共钦州市委组织部\n0777-3688126","工作岗位为乡镇机关"]
[110,45089001,"选调生岗位一\n（贵港市）","男","“双一流”建设高校、其他高校",4,"不限专业","中共贵港市委组织部\n0775-4563083","工作岗位为乡镇机关"]
[111,45089002,"选调生岗位二\n（贵港市）","女","“双一流”建设高校、其他高校",4,"不限专业","中共贵港市委组织部\n0775-4563083","工作岗位为乡镇机关"]
[112,45089003,"选调生岗位三\n（贵港市）","不限","“双一流”建设高校、其他高校",3,"法学类","中共贵港市委组织部\n0775-4563083","工作岗位为乡镇机关"]
[113,45089004,"选调生岗位四\n（贵港市）","不限","“双一流”建设高校、其他高校",1,"农业工程类、土木类","中共贵港市委组织部\n0775-4563083","工作岗位为乡镇机关"]
[114,45089005,"选调生岗位五\n（贵港市）","不限","“双一流”建设高校、其他高校",1,"测绘科学与技术类、经济学类","中共贵港市委组织部\n0775-4563083","工作岗位为乡镇机关"]
[115,45089006,"选调生岗位六\n（贵港市）","女","“双一流”建设高校、其他高校",1,"现代农业（林业）经营与管理、农业水土工程、农业水利工程、应用物理、临床医学、公共卫生与预防医学","中共贵港市委组织部\n0775-4563083","工作岗位为乡镇机关"]
[116,45089007,"选调生岗位七\n（贵港市）","男","“双一流”建设高校、其他高校",1,"物流工程及管理，应急管理、农（水）产品加工及贮藏工程、食品科学（工程）、食品加工技术食品生物技术","中共贵港市委组织部\n0775-4563083","工作岗位为乡镇机关"]
[117,45089008,"选调生岗位八\n（贵港市）","男","“双一流”建设高校、其他高校",2,"法学类","中共贵港市委组织部\n0775-4563083","工作岗位为县级机关，要求获得国家法律资格证书A证"]
[118,45089009,"选调生岗位九\n（贵港市）","女","“双一流”建设高校、其他高校",2,"法学类","中共贵港市委组织部\n0775-4563083","工作岗位为县级机关，要求获得国家法律资格证书A证"]
[119,45089010,"选调生岗位十\n（贵港市）","男","“双一流”建设高校",1,"法学类","中共贵港市委组织部\n0775-4563083","工作岗位为县级机关，要求获得国家法律资格证书A证"]
[120,45089011,"选调生岗位十一\n（贵港市）","女","“双一流”建设高校",1,"法学类","中共贵港市委组织部\n0775-4563083","工作岗位为县级机关，要求获得国家法律资格证书A证"]
[121,45259001,"选调生岗位一\n（玉林市）","不限","“双一流”建设高校",1,"法学类","中共玉林市委组织部\n0775-2806803","工作岗位为市直参照公务员法管理单位"]
[122,45259002,"选调生岗位二\n（玉林市）","不限","“双一流”建设高校",2,"金融学类；财政学类；审计学类；统计学类","中共玉林市委组织部\n0775-2806803","工作岗位为市直参照公务员法管理单位或县直机关"]
[123,45259003,"选调生岗位三\n（玉林市）","不限","“双一流”建设高校、其他高校",2,"经济学类；审计学类；统计学类","中共玉林市委组织部\n0775-2806803","工作岗位为乡镇机关"]
[124,45259004,"选调生岗位四\n（玉林市）","不限","“双一流”建设高校、其他高校",2,"农业工程类；林学及林业工程类；植物生产、保护及草学类；动物生产与水产类","中共玉林市委组织部\n0775-2806803","工作岗位为乡镇机关"]
[125,45259005,"选调生岗位五\n（玉林市）","不限","“双一流”建设高校、其他高校",2,"水利类；海洋科学类；船舶与海洋工程类","中共玉林市委组织部\n0775-2806803","工作岗位为乡镇机关"]
[126,45259006,"选调生岗位六\n（玉林市）","不限","“双一流”建设高校、其他高校",2,"基础医学类；临床医学类；医学技术类；公共卫生与预防医学类；中医学类；中西结合类；药学类；中药学类","中共玉林市委组织部\n0775-2806803","工作岗位为乡镇机关"]
[127,45259007,"选调生岗位七\n（玉林市）","不限","“双一流”建设高校、其他高校",2,"生物科学及技术类；化工与制药技术类；生物工程类","中共玉林市委组织部\n0775-2806803","工作岗位为乡镇机关"]
[128,45259008,"选调生岗位八\n（玉林市）","不限","“双一流”建设高校、其他高校",2,"能源动力及工程热物理类；材料及冶金类；电气、电子及自动化类","中共玉林市委组织部\n0775-2806803","工作岗位为乡镇机关"]
[129,45259009,"选调生岗位九\n（玉林市）","不限","“双一流”建设高校、其他高校",2,"土木类；建筑类；测绘科学与技术类；交通运输类","中共玉林市委组织部\n0775-2806803","工作岗位为乡镇机关"]
[130,45259010,"选调生岗位十\n（玉林市）","不限","“双一流”建设高校、其他高校",2,"纺织轻工类；食品科学与工程类","中共玉林市委组织部\n0775-2806803","工作岗位为乡镇机关"]
[131,45259011,"选调生岗位十一\n（玉林市）","不限","“双一流”建设高校、其他高校",2,"物流管理与工程类；工业工程类；管理科学与工程类；公共管理类","中共玉林市委组织部\n0775-2806803","工作岗位为乡镇机关"]
[132,45259012,"选调生岗位十二\n（玉林市）","不限","“双一流”建设高校、其他高校",2,"地质类；地质学类；矿业类；环境科学与工程类；自然保护与环境生态类","中共玉林市委组织部\n0775-2806803","工作岗位为乡镇机关"]
[133,45259013,"选调生岗位十三\n（玉林市）","女","“双一流”建设高校、其他高校",3,"不限专业","中共玉林市委组织部\n0775-2806803","工作岗位为乡镇机关"]
[134,45259014,"选调生岗位十四\n（玉林市）","男","“双一流”建设高校、其他高校",3,"不限专业","中共玉林市委组织部\n0775-2806803","工作岗位为乡镇机关"]
[135,45269001,"选调生岗位一\n（百色市）","男","“双一流”建设高校、其他高校",3,"土木类、农林经济管理类、水利类、金融学类、交通运输类、农业工程类、林学及林业工程类","中共百色市委组织部\n0776-2836186","工作岗位为乡镇机关"]
[136,45269002,"选调生岗位二\n（百色市）","女","“双一流”建设高校、其他高校",2,"植物生产、保护及草学类、临床医学类、中国汉语言文学及文秘类、计算机科学与技术类、法学类","中共百色市委组织部\n0776-2836186","工作岗位为乡镇机关"]
[137,45269003,"选调生岗位三\n（百色市）","女","“双一流”建设高校、其他高校",3,"经济学类、会计学类、统计学类、审计学类、食品科学与工程类、药学类、植物生产、保护及草学类、农林经济管理类、农业工程类、交通运输类、法学类、旅游管理类","中共百色市委组织部\n0776-2836186","工作岗位为乡镇机关"]
[138,45269004,"选调生岗位四\n（百色市）","男","“双一流”建设高校、其他高校",2,"化工与制药技术类、机械类、安全科学与工程类、矿业类、地质类、地理科学类","中共百色市委组织部\n0776-2836186","工作岗位为乡镇机关"]
[139,45269005,"选调生岗位五\n（百色市）","男","“双一流”建设高校、其他高校",5,"土木类、农林经济管理类、植物生产、保护及草学类、水利类、临床医学类","中共百色市委组织部\n0776-2836186","工作岗位为乡镇机关"]
[140,45269006,"选调生岗位六\n（百色市）","女","“双一流”建设高校、其他高校",5,"经济学类、公共管理类、法学类","中共百色市委组织部\n0776-2836186","工作岗位为乡镇机关"]
[141,45269007,"选调生岗位七\n（百色市）","男","“双一流”建设高校、其他高校",5,"土木类、建筑类、农业工程类、临床医学类、公共卫生与预防医学类、水利类、食品科学与工程类、植物生产、保护及草学类","中共百色市委组织部\n0776-2836186","工作岗位为乡镇机关"]
[142,45269008,"选调生岗位八\n（百色市）","女","“双一流”建设高校、其他高校",3,"经济学类、法学类","中共百色市委组织部\n0776-2836186","工作岗位为乡镇机关"]
[143,45269009,"选调生岗位九\n（百色市）","男","“双一流”建设高校、其他高校",2,"自然保护和环境生态类、化工与制药技术类、材料及冶金类","中共百色市委组织部\n0776-2836186","工作岗位为乡镇机关"]
[144,45269010,"选调生岗位十\n（百色市）","男","“双一流”建设高校、其他高校",3,"农业工程类、水利类、地质类、地理科学类","中共百色市委组织部\n0776-2836186","工作岗位为乡镇机关"]
[145,45269011,"选调生岗位十一\n（百色市）","女","“双一流”建设高校、其他高校",2,"土木类、建筑类、临床医学类、公共卫生与预防医学类、食品科学与工程类","中共百色市委组织部\n0776-2836186","工作岗位为乡镇机关"]
[146,45269012,"选调生岗位十二\n（百色市）","女","“双一流”建设高校、其他高校",5,"不限专业","中共百色市委组织部\n0776-2836186","工作岗位为乡镇机关"]
[147,45269013,"选调生岗位十三\n（百色市）","男","“双一流”建设高校、其他高校",5,"不限专业","中共百色市委组织部\n0776-2836186","工作岗位为乡镇机关"]
[148,45269014,"选调生岗位十四\n（百色市）","女","“双一流”建设高校、其他高校",5,"不限专业","中共百色市委组织部\n0776-2836186","工作岗位为乡镇机关"]
[149,45269015,"选调生岗位十五\n（百色市）","男","“双一流”建设高校、其他高校",5,"不限专业","中共百色市委组织部\n0776-2836186","工作岗位为乡镇机关"]
[150,45269016,"选调生岗位十六\n（百色市）","女","“双一流”建设高校、其他高校",5,"不限专业","中共百色市委组织部\n0776-2836186","工作岗位为乡镇机关"]
[151,45269017,"选调生岗位十七\n（百色市）","男","“双一流”建设高校、其他高校",5,"不限专业","中共百色市委组织部\n0776-2836186","工作岗位为乡镇机关"]
[152,45269018,"选调生岗位十八\n（百色市）","女","“双一流”建设高校、其他高校",5,"不限专业","中共百色市委组织部\n0776-2836186","工作岗位为乡镇机关"]
[153,45269019,"选调生岗位十九\n（百色市）","男","“双一流”建设高校、其他高校",2,"不限专业","中共百色市委组织部\n0776-2836186","工作岗位为乡镇机关"]
[154,45269020,"选调生岗位二十\n（百色市）","女","“双一流”建设高校、其他高校",2,"不限专业","中共百色市委组织部\n0776-2836186","工作岗位为乡镇机关"]
[155,45249001,"选调生岗位一\n（贺州市）","不限","“双一流”建设高校、其他高校",1,"法学类","中共贺州市委组织部 0774–5129022","工作岗位为县直机关"]
[156,45249002,"选调生岗位二\n（贺州市）","不限","“双一流”建设高校、其他高校",1,"中国汉语言文学及文秘类","中共贺州市委组织部 0774–5129022","工作岗位为乡镇机关"]
[157,45249003,"选调生岗位三\n（贺州市）","男","“双一流”建设高校、其他高校",1,"经济学类，环境科学与工程类，土建类，金融学类","中共贺州市委组织部 0774–5129022","工作岗位为乡镇机关"]
[158,45249004,"选调生岗位四\n（贺州市）","女","“双一流”建设高校、其他高校",1,"农业工程类，农林经济管理类，纺织轻工类，药学类","中共贺州市委组织部 0774–5129022","工作岗位为乡镇机关"]
[159,45249005,"选调生岗位五\n（贺州市）","男","“双一流”建设高校、其他高校",1,"金融学类，纺织轻工类，物流管理与工程类","中共贺州市委组织部 0774–5129022","工作岗位为乡镇机关"]
[160,45249006,"选调生岗位六\n（贺州市）","女","“双一流”建设高校、其他高校",1,"经济与贸易类，财政学类，会计学类，法学类","中共贺州市委组织部 0774–5129022","工作岗位为乡镇机关"]
[161,45249007,"选调生岗位七\n（贺州市）","男","“双一流”建设高校、其他高校",1,"土建类，地质类，矿业类，环境科学与工程类","中共贺州市委组织部 0774–5129022","工作岗位为乡镇机关"]
[162,45249008,"选调生岗位八\n（贺州市）","女","“双一流”建设高校、其他高校",1,"农业工程类，农林经济管理类，计算机科学与技术类，植物生产、保护及草学类，动物生产与水产类","中共贺州市委组织部 0774–5129022","工作岗位为乡镇机关"]
[163,45249009,"选调生岗位九\n（贺州市）","男","“双一流”建设高校、其他高校",3,"经济学类；测绘科学与技术类；植物生产、保护及草学类；管理科学与工程类；农林经济管理类；水利类；农业工程类；公共管理类；图书情报与档案管理类","中共贺州市委组织部 0774–5129022","工作岗位为乡镇机关"]
[164,45249010,"选调生岗位十\n（贺州市）","女","“双一流”建设高校、其他高校",3,"经济学类；测绘科学与技术类；植物生产、保护及草学类；管理科学与工程类；农林经济管理类；水利类；农业工程类；公共管理类；图书情报与档案管理类","中共贺州市委组织部 0774–5129022","工作岗位为乡镇机关"]
[165,45249011,"选调生岗位十一\n（贺州市）","男","“双一流”建设高校、其他高校",1,"法学类，中国汉语言文学及文秘类，新闻传播学类，经济学类","中共贺州市委组织部 0774–5129022","工作岗位为乡镇机关"]
[166,45249012,"选调生岗位十二\n（贺州市）","女","“双一流”建设高校、其他高校",1,"法学类，中国汉语言文学及文秘类，新闻传播学类，经济学类","中共贺州市委组织部 0774–5129022","工作岗位为乡镇机关"]
[167,45249013,"选调生岗位十三\n（贺州市）","男","“双一流”建设高校、其他高校",1,"法学类，中国汉语言文学及文秘类，新闻传播学类，公共管理类","中共贺州市委组织部 0774–5129022","工作岗位为乡镇机关"]
[168,45249014,"选调生岗位十四\n（贺州市）","女","“双一流”建设高校、其他高校",1,"法学类，中国汉语言文学及文秘类，新闻传播学类，公共管理类","中共贺州市委组织部 0774–5129022","工作岗位为乡镇机关"]
[169,45249015,"选调生岗位十五\n（贺州市）","不限","“双一流”建设高校、其他高校",1,"农业工程类，自然保护与环境生态类，植物生产、保护及草学类，农林经济管理类","中共贺州市委组织部 0774–5129022","工作岗位为乡镇机关"]
[170,45249016,"选调生岗位十六\n（贺州市）","男","“双一流”建设高校、其他高校",1,"不限专业","中共贺州市委组织部 0774–5129022","工作岗位为乡镇机关"]
[171,45249017,"选调生岗位十七\n（贺州市）","女","“双一流”建设高校、其他高校",1,"不限专业","中共贺州市委组织部 0774–5129022","工作岗位为乡镇机关"]
[172,45249018,"选调生岗位十八\n（贺州市）","男","“双一流”建设高校、其他高校",1,"不限专业","中共贺州市委组织部 0774–5129022","工作岗位为乡镇机关"]
[173,45249019,"选调生岗位十九\n（贺州市）","女","“双一流”建设高校、其他高校",1,"不限专业","中共贺州市委组织部 0774–5129022","工作岗位为乡镇机关"]
[174,45249020,"选调生岗位二十\n（贺州市）","男","“双一流”建设高校、其他高校",2,"不限专业","中共贺州市委组织部 0774–5129022","工作岗位为乡镇机关"]
[175,45249021,"选调生岗位二十一\n（贺州市）","女","“双一流”建设高校、其他高校",2,"不限专业","中共贺州市委组织部 0774–5129022","工作岗位为乡镇机关"]
[176,45249022,"选调生岗位二十二\n（贺州市）","男","“双一流”建设高校、其他高校",2,"不限专业","中共贺州市委组织部 0774–5129022","工作岗位为乡镇机关"]
[177,45249023,"选调生岗位二十三\n（贺州市）","女","“双一流”建设高校、其他高校",2,"不限专业","中共贺州市委组织部 0774–5129022","工作岗位为乡镇机关"]
[178,45249024,"选调生岗位二十四\n（贺州市）","不限","“双一流”建设高校、其他高校",1,"不限专业","中共贺州市委组织部 0774–5129022","工作岗位为乡镇机关"]
[179,45249025,"选调生岗位二十五\n（贺州市）","不限","“双一流”建设高校、其他高校",1,"不限专业","中共贺州市委组织部 0774–5129022","工作岗位为乡镇机关"]
[180,45279001,"选调生岗位一\n（河池市）","不限","“双一流”建设高校",1,"社会学类；公共管理类；法学类；政治学类；民族学类；哲学类；中国汉语言文学及文秘类","中共河池市委组织部\n0778—2103506","中共党员，工作岗位为市直机关"]
[181,45279002,"选调生岗位二\n（河池市）","男","“双一流”建设高校、其他高校",1,"旅游管理类；法学类；社会学类；民族学类；历史学类；新闻传播学类；计算机科学与技术类","中共河池市委组织部\n0778—2103506","中共党员，工作岗位为市直机关"]
[182,45279003,"选调生岗位三\n（河池市）","女","“双一流”建设高校、其他高校",1,"旅游管理类；法学类；社会学类；民族学类；新闻传播学类；历史学类；计算机科学与技术类","中共河池市委组织部\n0778—2103506","中共党员，工作岗位为市直机关"]
[183,45279004,"选调生岗位四\n（河池市）","女","“双一流”建设高校、其他高校",3,"经济学类；统计学类；工商管理类","中共河池市委组织部\n0778—2103506","工作岗位为乡镇机关"]
[184,45279005,"选调生岗位五\n（河池市）","男","“双一流”建设高校、其他高校",3,"经济学类；统计学类；工商管理类","中共河池市委组织部\n0778—2103506","工作岗位为乡镇机关"]
[185,45279006,"选调生岗位六\n（河池市）","女","“双一流”建设高校、其他高校",2,"旅游管理类；农林经济管理类；生物工程类；地质学类；地质类","中共河池市委组织部\n0778—2103506","工作岗位为乡镇机关"]
[186,45279007,"选调生岗位七\n（河池市）","男","“双一流”建设高校、其他高校",2,"旅游管理类；农林经济管理类；生物工程类；地质学类；地质类","中共河池市委组织部\n0778—2103506","工作岗位为乡镇机关"]
[187,45279008,"选调生岗位八\n（河池市）","男","“双一流”建设高校、其他高校",2,"土木类；建筑类；交通运输类；水利类；测绘科学与技术类；地质学类；地质类","中共河池市委组织部\n0778—2103506","工作岗位为乡镇机关"]
[188,45279009,"选调生岗位九\n（河池市）","女","“双一流”建设高校、其他高校",2,"土木类；建筑类；交通运输类；水利类；测绘科学与技术类；地质学类；地质类","中共河池市委组织部\n0778—2103506","工作岗位为乡镇机关"]
[189,45279010,"选调生岗位十\n（河池市）","女","“双一流”建设高校、其他高校",2,"工业工程类；矿业类；化工与制药技术类；化学类；材料及冶金类；纺织轻工类；环境科学与工程类；食品科学与工程类；","中共河池市委组织部\n0778—2103506","工作岗位为乡镇机关"]
[190,45279011,"选调生岗位十一\n（河池市）","男","“双一流”建设高校、其他高校",2,"工业工程类；矿业类；化工与制药技术类；化学类；材料及冶金类；纺织轻工类；环境科学与工程类；食品科学与工程类；","中共河池市委组织部\n0778—2103506","工作岗位为乡镇机关"]
[191,45279012,"选调生岗位十二\n（河池市）","不限","“双一流”建设高校、其他高校",1,"不限专业","中共河池市委组织部\n0778—2103506","中共党员，研究生，工作岗位为县直机关"]
[192,45279013,"选调生岗位十三\n（河池市）","男","“双一流”建设高校、其他高校",2,"不限专业","中共河池市委组织部\n0778—2103506","工作岗位为乡镇机关"]
[193,45279014,"选调生岗位十四\n（河池市）","女","“双一流”建设高校、其他高校",2,"不限专业","中共河池市委组织部\n0778—2103506","工作岗位为乡镇机关"]
[194,45279015,"选调生岗位十五\n（河池市）","男","“双一流”建设高校、其他高校",2,"不限专业","中共河池市委组织部\n0778—2103506","中共党员，工作岗位为乡镇机关"]
[195,45279016,"选调生岗位十六\n（河池市）","女","“双一流”建设高校、其他高校",2,"不限专业","中共河池市委组织部\n0778—2103506","中共党员，工作岗位为乡镇机关"]
[196,45279017,"选调生岗位十七\n（河池市）","不限","“双一流”建设高校、其他高校",1,"不限专业","中共河池市委组织部\n0778—2103506","工作岗位为乡镇机关"]
[197,45279018,"选调生岗位十八\n（河池市）","男","“双一流”建设高校、其他高校",3,"不限专业","中共河池市委组织部\n0778—2103506","中共党员，工作岗位为县直及乡镇机关"]
[198,45279019,"选调生岗位十九\n（河池市）","女","“双一流”建设高校、其他高校",3,"不限专业","中共河池市委组织部\n0778—2103506","中共党员，工作岗位为乡镇机关"]
[199,45279020,"选调生岗位二十\n（河池市）","男","“双一流”建设高校、其他高校",5,"不限专业","中共河池市委组织部\n0778—2103506","工作岗位为乡镇机关"]
[200,45279021,"选调生岗位二十一\n（河池市）","女","“双一流”建设高校、其他高校",5,"不限专业","中共河池市委组织部\n0778—2103506","工作岗位为乡镇机关"]
[201,45229001,"选调生岗位一\n（来宾市）","男","“双一流”建设高校、其他高校",4,"土木类；水利类；工业工程类；建筑类；环境科学与工程类","中共来宾市委组织部\n0772-4278960","工作岗位为乡镇机关"]
[202,45229002,"选调生岗位二\n（来宾市）","男","“双一流”建设高校、其他高校",3,"交通运输类；管理科学与工程类；化学类；化工与制药技术类","中共来宾市委组织部\n0772-4278960","工作岗位为乡镇机关"]
[203,45229003,"选调生岗位三\n（来宾市）","男","“双一流”建设高校、其他高校",1,"测绘科学与技术类；地质类；矿业类；地理科学类","中共来宾市委组织部\n0772-4278960","工作岗位为乡镇机关"]
[204,45229004,"选调生岗位四\n（来宾市）","男","“双一流”建设高校、其他高校",3,"经济学类；财政学类；金融学类；统计学类；审计学类","中共来宾市委组织部\n0772-4278960","工作岗位为乡镇机关"]
[205,45229005,"选调生岗位五\n（来宾市）","女","“双一流”建设高校、其他高校",4,"经济学类；财政学类；金融学类；统计学类；审计学类","中共来宾市委组织部\n0772-4278960","工作岗位为乡镇机关"]
[206,45229006,"选调生岗位六\n（来宾市）","女","“双一流”建设高校、其他高校",4,"农业工程类；农林经济管理类；林学及林业工程类；植物生产、保护及草学类","中共来宾市委组织部\n0772-4278960","工作岗位为乡镇机关"]
[207,45229007,"选调生岗位七\n（来宾市）","女","“双一流”建设高校、其他高校",3,"法学类；计算机科学与技术类；公共管理类；旅游管理类；物流管理与工程类","中共来宾市委组织部\n0772-4278960","工作岗位为乡镇机关"]
[208,45229008,"选调生岗位八\n（来宾市）","不限","“双一流”建设高校、其他高校",1,"中国汉语言文学及文秘类、新闻传播学类、历史学类、哲学类、政治学类","中共来宾市委组织部\n0772-4278960","工作岗位为乡镇机关"]
[209,45219001,"选调生岗位一\n（崇左市）","男","“双一流”建设高校、其他高校",2,"法学类，土木类","中共崇左市委组织部\n0771-7969818","工作岗位为乡镇机关"]
[210,45219002,"选调生岗位二\n（崇左市）","女","“双一流”建设高校、其他高校",2,"法学类，土木类","中共崇左市委组织部\n0771-7969818","工作岗位为乡镇机关"]
[211,45219003,"选调生岗位三\n（崇左市）","男","“双一流”建设高校、其他高校",5,"不限专业","中共崇左市委组织部\n0771-7969818","工作岗位为乡镇机关"]
[212,45219004,"选调生岗位四\n（崇左市）","女","“双一流”建设高校、其他高校",5,"不限专业","中共崇左市委组织部\n0771-7969818","工作岗位为乡镇机关"]
[213,45219005,"选调生岗位五\n（崇左市）","男","“双一流”建设高校、其他高校",5,"不限专业","中共崇左市委组织部\n0771-7969818","工作岗位为乡镇机关"]
[214,45219006,"选调生岗位六\n（崇左市）","女","“双一流”建设高校、其他高校",5,"不限专业","中共崇左市委组织部\n0771-7969818","工作岗位为乡镇机关"]
[215,45219007,"选调生岗位七\n（崇左市）","男","“双一流”建设高校、其他高校",5,"不限专业","中共崇左市委组织部\n0771-7969818","工作岗位为乡镇机关"]
[216,45219008,"选调生岗位八\n（崇左市）","女","“双一流”建设高校、其他高校",5,"不限专业","中共崇左市委组织部\n0771-7969818","工作岗位为乡镇机关"]
[217,45219009,"选调生岗位九\n（崇左市）","男","“双一流”建设高校、其他高校",4,"不限专业","中共崇左市委组织部\n0771-7969818","工作岗位为乡镇机关"]
[218,45219010,"选调生岗位十\n（崇左市）","女","“双一流”建设高校、其他高校",4,"不限专业","中共崇左市委组织部\n0771-7969818","工作岗位为乡镇机关"]